fUSD/lending_fUSD_20240607
["ID","MTS","AMOUNT","RATE_DAILY","PERIOD"]
[328724234,1717733447135,-500.0,0.00029863,4]
[328724236,1717733447145,-500.0,0.00029863,4]
[328724238,1717733447155,-500.0,0.00029863,4]
[328724240,1717733447164,-500.0,0.00029863,4]
[328724242,1717733447173,-500.0,0.00029863,4]
[328724244,1717733447182,-571.0942386,0.00029863,4]
[328724246,1717733447192,-500.0,0.00029863,4]
[328724248,1717733447201,-500.0,0.00029863,4]
[328724250,1717733447210,-185.55484285,0.00029863,4]
[328724252,1717733447219,-500.0,0.00029863,4]
[328724254,1717733447228,-500.0,0.00029863,4]
[328724257,1717733447238,-500.0,0.00029863,4]
[328724258,1717733447247,-500.0,0.00029863,4]
[328724261,1717733447256,-500.0,0.00029863,4]
[328724263,1717733447265,-500.0,0.00029863,4]
[328724265,1717733447275,-500.0,0.00029863,4]
[328724267,1717733447284,-500.0,0.00029863,4]
[328724269,1717733447293,-500.0,0.00029863,4]
[328724271,1717733447303,-178.68111386,0.00029863,4]
[328724273,1717733447314,-533.6599264,0.00029863,4]
[328724275,1717733447323,-500.0,0.00029863,4]
[328724277,1717733447333,-309.52162432,0.00029863,4]
[328724279,1717733447342,-500.0,0.00029863,4]
[328724281,1717733447352,-500.0,0.00029863,4]
[328724283,1717733447362,-500.0,0.00029863,4]
[328724285,1717733447372,-500.0,0.00029863,4]
[328724287,1717733447381,-500.0,0.00029863,4]
[328724289,1717733447391,-313.49153816,0.00029863,4]
[328724291,1717733447400,-500.0,0.00029863,4]
[328724293,1717733447409,-500.0,0.00029863,4]
[328724295,1717733447418,-500.0,0.00029863,4]
[328724297,1717733447428,-500.0,0.00029863,4]
[328724299,1717733447438,-500.0,0.00029863,4]
[328724301,1717733447447,-500.0,0.00029863,4]
[328724303,1717733447457,-500.0,0.00029863,4]
[328724305,1717733447467,-500.0,0.00029863,4]
[328724307,1717733447477,-500.0,0.00029863,4]
[328724309,1717733447487,-608.47336698,0.00029863,4]
[328724311,1717733447496,-500.0,0.00029863,4]
[328724313,1717733447506,-500.0,0.00029863,4]
[328724315,1717733447516,-76.04090504,0.00029863,4]
[328724329,1717733447648,-423.95909496,0.00029863,4]
[328724331,1717733447657,-500.0,0.00029863,4]
[328724333,1717733447667,-500.0,0.00029863,4]
[328724335,1717733447676,-256.02525714,0.00029863,4]
[328724337,1717733447686,-500.0,0.00029863,4]
[328724339,1717733447696,-500.0,0.00029863,4]
[328724341,1717733447705,-500.0,0.00029863,4]
[328724343,1717733447715,-500.0,0.00029863,4]
[328724345,1717733447724,-500.0,0.00029863,4]
[328724347,1717733447734,-386.71834735,0.00029863,4]
[328724351,1717733447758,-113.28165265,0.00029863,4]
[328724353,1717733447767,-467.71834735,0.00029863,4]
[328724357,1717733447792,-36.03591985,0.00029863,4]
[328724359,1717733447802,-500.0,0.00029863,4]
[328724361,1717733447811,-500.0,0.00029863,4]
[328724363,1717733447820,-500.0,0.00029863,4]
[328724365,1717733447829,-500.0,0.00029863,4]
[328724367,1717733447839,-500.0,0.00029863,4]
[328724369,1717733447848,-500.0,0.00029863,4]
[328724372,1717733447867,-379.77008953,0.00029863,4]
[328724374,1717733447877,-502.03,0.00029863,4]
[328724376,1717733447887,-502.03,0.00029863,4]
[328724377,1717733447896,-502.03,0.00029863,4]
[328724379,1717733447906,-502.03,0.00029863,4]
[328724382,1717733447916,-502.03,0.00029863,4]
[328724384,1717733447926,-502.03,0.00029863,4]
[328724386,1717733447935,-502.03,0.00029863,4]
[328724388,1717733447946,-502.03,0.00029863,4]
[328724390,1717733447956,-502.03,0.00029863,4]
[328724392,1717733447966,-502.03,0.00029863,4]
[328724394,1717733447976,-502.03,0.00029863,4]
[328724396,1717733447985,-502.03,0.00029863,4]
[328724398,1717733447995,-502.03,0.00029863,4]
[328724400,1717733448005,-500.0,0.00029863,4]
[328724402,1717733448015,-502.03,0.00029863,4]
[328724404,1717733448024,-549.59803029,0.00029863,4]
[328724406,1717733448035,-502.03,0.00029863,4]
[328724408,1717733448044,-500.0,0.00029863,4]
[328724410,1717733448055,-502.03,0.00029863,4]
[328724413,1717733448065,-345.23791683,0.00029863,4]
[328724416,1717733448093,-156.52040211,0.00029863,4]
[328724418,1717733448103,-502.03,0.00029863,4]
[328724420,1717733448113,-502.03,0.00029863,4]
[328724422,1717733448123,-502.03,0.00029863,4]
[328724424,1717733448132,-502.03,0.00029863,4]
[328724427,1717733448142,-502.03,0.00029863,4]
[328724429,1717733448152,-73.24948106,0.00029863,4]
[328724613,1717733955571,500.0,0.00029863,60]
[328724614,1717733955833,500.0,0.00029863,60]
[328724615,1717733956089,500.0,0.00029863,60]
[328724616,1717733956359,500.0,0.00029863,60]
[328724617,1717733956618,500.0,0.00029863,60]
[328724618,1717733956889,500.0,0.00029863,60]
[328724619,1717733957148,500.0,0.00029863,60]
[328724620,1717733957427,150.06558534,0.00029863,60]
[328724630,1717734559410,-645.50901128,0.00016285,2]
[328724631,1717734559439,-251.50742474,0.00016286,2]
[328724633,1717734559465,-1802.98356398,0.00016286,2]
[328724655,1717734631869,-155.0,0.00016183,2]
[328724656,1717734631878,-155.0,0.00016184,2]
[328724657,1717734631888,-179.34999,0.00016184,2]
[328724658,1717734631899,-1081.72268491,0.00016184,2]
[328724659,1717734631908,-589.59847318,0.00016184,2]
[328724660,1717734631961,-663.99313306,0.00016184,2]
[328724661,1717734631973,-266.27999998,0.00016184,2]
[328724662,1717734631984,-380.96549753,0.00016184,2]
[328724663,1717734631994,-119.03450247,0.00016185,2]
[328724664,1717734632055,-569.38820057,0.00016185,2]
[328724665,1717734632065,-241.49077668,0.00016186,2]
[328724666,1717734632074,-331.03299245,0.00016187,2]
[328724667,1717734632084,-161.54828776,0.00016187,2]
[328724668,1717734632093,-300.0,0.00016284,2]
[328724669,1717734632103,-35471.4319558,0.00016284,2]
[328724670,1717734632112,-10534.28950588,0.00016285,2]
[328724671,1717734632122,-2809.84986542,0.00016286,2]
[328724672,1717734632131,-155.0,0.00016485,2]
[328724673,1717734632140,-668.87106536,0.00016486,2]
[328724674,1717734632150,-499.99,0.00017132,2]
[328724675,1717734632159,-9999.99,0.00017145,2]
[328724676,1717734632169,-39890.01606823,0.00017149,2]
[328724677,1717734632180,-301.93897345,0.00017149,2]
[328724678,1717734632227,-873.0,0.00016286,2]
[328724679,1717734632261,-2401.73426047,0.00016286,2]
[328724680,1717734632275,-942.08096292,0.00016286,2]
[328724681,1717734637733,-789.98399347,0.00016286,2]
[328724682,1717734637759,-1506.12972601,0.00016286,2]
[328724683,1717734637771,-4236.31959268,0.00016286,2]
[328724684,1717734637783,-1566.48725134,0.00016286,2]
[328724685,1717734637849,-648.10177974,0.00016286,2]
[328724686,1717734637866,-2000.0,0.00016286,2]
[328724687,1717734639852,-1911.879905,0.00016286,2]
[328724688,1717734639865,-7778.82505743,0.00016286,2]
[328724689,1717734639876,-1046.71514559,0.00016286,2]
[328724690,1717734639886,-2263.60487898,0.00017149,2]
[328724691,1717734639898,-5591.76985272,0.00017149,2]
[328724692,1717734639947,-3040.41997605,0.00017149,2]
[328724693,1717734639959,-10011.38409837,0.00017149,2]
[328724694,1717734639969,-9907.89,0.00017149,2]
[328724695,1717734639979,-420.0,0.00017799,2]
[328724696,1717734639989,-180.0,0.00019454,2]
[328724697,1717734640000,-341.93366323,0.0002,2]
[328724698,1717734640010,-155.0,0.00020352,4]
[328724699,1717734640020,-1011.07818296,0.00020353,2]
[328724700,1717734640030,-364.12731579,0.00020354,2]
[328724701,1717734640040,-369.22,0.00020355,2]
[328724702,1717734640051,-789.28,0.00022042,2]
[328724703,1717734640061,-153.4,0.00022457,2]
[328724704,1717734640071,-250.0,0.00022491,2]
[328724705,1717734640081,-153.4,0.00022541,2]
[328724706,1717734640091,-369.22,0.00022619,2]
[328724707,1717734640101,-153.4,0.00022625,2]
[328724708,1717734640111,-153.4,0.00022708,2]
[328724709,1717734640121,-153.4,0.00022792,2]
[328724710,1717734640132,-153.4,0.00022875,2]
[328724711,1717734640144,-153.4,0.00022959,2]
[328724712,1717734640156,-153.4,0.00023042,2]
[328724713,1717734640166,-150.0,0.00023096,2]
[328724714,1717734640176,-153.4,0.00023126,2]
[328724715,1717734640185,-153.4,0.0002321,2]
[328724716,1717734640196,-153.4,0.00023293,2]
[328724717,1717734640206,-153.4,0.00023377,2]
[328724718,1717734640216,-153.4,0.0002346,2]
[328724719,1717734640227,-153.4,0.00023544,2]
[328724721,1717734640237,-153.4,0.00023628,2]
[328724723,1717734640247,-824.41,0.00023885,2]
[328724725,1717734640257,-250.0,0.00023945,2]
[328724727,1717734640267,-364.78,0.00024384,2]
[328724729,1717734640281,-23890.0,0.00024697,2]
[328724731,1717734640291,-1338.14789325,0.00024799,2]
[328724733,1717734640300,-1338.14789319,0.00024799,2]
[328724735,1717734640311,-1338.14789319,0.00024799,2]
[328724737,1717734640321,-250.0,0.00024824,2]
[328724739,1717734640331,-377.70192462,0.00024833,2]
[328724741,1717734640341,-4636.51,0.00024834,2]
[328724742,1717734640351,-369.22,0.00024883,2]
[328724743,1717734640364,-1000.0,0.00024902,2]
[328724744,1717734640374,-1250.0,0.00025,2]
[328724745,1717734640385,-325.96818218,0.00025021,2]
[328724746,1717734640394,-4378.58,0.00025022,2]
[328724747,1717734640407,-192.14,0.00025033,2]
[328724748,1717734640417,-1338.14789319,0.00025206,2]
[328724749,1717734640427,-500.0,0.00025939,2]
[328724750,1717734640441,-500.0,0.00025939,2]
[328724751,1717734640451,-1338.14789319,0.00025988,2]
[328724752,1717734640461,-23523.49813737,0.00026,5]
[328724753,1717734640470,-166.54,0.00026272,2]
[328724754,1717734640480,-2055.69464172,0.000266,2]
[328724755,1717734640489,-824.41,0.00026625,2]
[328724756,1717734640499,-1338.14789319,0.00026771,2]
[328724757,1717734640508,-172.97,0.00026889,2]
[328724758,1717734640518,-1300.0,0.00027,2]
[328724759,1717734640527,-7479.06287772,0.00027,2]
[328724760,1717734640537,-500.0,0.00027035,2]
[328724761,1717734640547,-500.0,0.00027035,2]
[328724762,1717734640557,-3454.03,0.00027123,2]
[328724763,1717734640567,-369.22,0.00027147,2]
[328724764,1717734640577,-806.64368738,0.0002739,2]
[328724765,1717734640587,-1338.14789319,0.00027553,2]
[328724766,1717734640598,-167.21,0.00027779,2]
[328724767,1717734640608,-645.50901128,0.00028013,2]
[328724768,1717734640618,-468.72828225,0.00028014,2]
[328724769,1717734640628,-1000.0,0.00028015,2]
[328724770,1717734640638,-1851.30045628,0.00028067,2]
[328724771,1717734640650,-500.0,0.00028131,2]
[328724772,1717734640660,-500.0,0.00028131,2]
[328724773,1717734640669,-855.22952021,0.00028169,2]
[328724774,1717734640679,-1338.14789319,0.00028335,2]
[328724775,1717734640689,-2010.60105363,0.00028368,2]
[328724776,1717734640699,-5810.23,0.00028623,2]
[328724777,1717734640709,-291.439,0.00028623,2]
[328724778,1717734640719,-37598.316,0.00028623,2]
[328724779,1717734640730,-1478.211,0.00028623,2]
[328724780,1717734640740,-265.97843345,0.00028999,2]
[328724781,1717734640749,-368.76082279,0.00029,2]
[328724782,1717734640759,-37598.3915026,0.00029,2]
[328724783,1717734640769,-1350.0,0.00029,2]
[328724784,1717734640778,-172.30107736,0.000291,2]
[328724785,1717734640788,-4168.40235176,0.00029117,2]
[328724786,1717734640797,-1338.14789319,0.00029118,15]
[328724787,1717734640807,-151.0,0.00029176,7]
[328724788,1717734640816,-500.0,0.00029227,2]
[328724789,1717734640826,-400.0,0.00029227,2]
[328724790,1717734640835,-172.30107736,0.000293,2]
[328724791,1717734640844,-153.55810887,0.00029359,2]
[328724792,1717734640854,-824.41,0.00029364,2]
[328724793,1717734640863,-160.51715234,0.00029366,2]
[328724794,1717734640873,-212.37299629,0.00029371,2]
[328724795,1717734640882,-155.39083653,0.00029373,2]
[328724796,1717734640892,-157.33324686,0.00029382,2]
[328724797,1717734640904,-150.0,0.000294,2]
[328724798,1717734640913,-212.37299629,0.00029406,2]
[328724799,1717734640923,-369.22,0.00029411,2]
[328724800,1717734640933,-155.01240203,0.00029459,2]
[328724801,1717734640943,-153.55810887,0.00029463,2]
[328724802,1717734640952,-170.40276079,0.00029469,2]
[328724803,1717734640962,-4823.2735,0.00029487,2]
[328724804,1717734640971,-7500.0,0.00029487,2]
[328724805,1717734640981,-500.0,0.00029494,2]
[328724806,1717734640991,-200.0,0.00029494,2]
[328724807,1717734641001,-334.04974451,0.00029496,2]
[328724808,1717734641010,-2110.0,0.000295,15]
[328724809,1717734641020,-172.30107736,0.000295,2]
[328724810,1717734641029,-154.19092341,0.00029503,2]
[328724811,1717734641039,-533.82453894,0.00029529,2]
[328724812,1717734641049,-242.37781429,0.00029531,2]
[328724813,1717734641059,-153.75535246,0.00029531,2]
[328724814,1717734641069,-153.55810887,0.00029532,2]
[328724815,1717734641078,-165.83758568,0.00029534,2]
[328724816,1717734641088,-242.37781429,0.00029551,2]
[328724817,1717734641097,-470.70481,0.0002956,2]
[328724818,1717734641107,-153.75535246,0.00029561,2]
[328724819,1717734641117,-150.80859698,0.00029563,4]
[328724820,1717734641126,-418.10043704,0.0002958,2]
[328724821,1717734641135,-245000.0,0.00029587,2]
[328724822,1717734641145,-242.37781429,0.00029596,2]
[328724823,1717734641156,-1000.0,0.000296,2]
[328724824,1717734641165,-224.0,0.000296,2]
[328724825,1717734641175,-354.0,0.000296,2]
[328724826,1717734641184,-155.01240203,0.00029613,2]
[328724827,1717734641193,-212.37299629,0.00029632,2]
[328724828,1717734641203,-1052.68556968,0.00029652,2]
[328724829,1717734641212,-1204.26400163,0.00029652,2]
[328724830,1717734641222,-158.0,0.00029656,5]
[328724831,1717734641231,-418.10043704,0.00029665,2]
[328724832,1717734641241,-512.79126072,0.0002969,2]
[328724833,1717734641250,-500.0,0.00029694,2]
[328724834,1717734641260,-172.30107736,0.000297,2]
[328724835,1717734641270,-155.19883755,0.00029705,2]
[328724836,1717734641281,-360.03465548,0.00029712,2]
[328724837,1717734641292,-512.79126072,0.00029727,2]
[328724838,1717734641302,-172.0,0.0002973,19]
[328724839,1717734641311,-153.55810887,0.00029735,2]
[328724840,1717734641322,-174.72044621,0.00029738,2]
[328724841,1717734641332,-153.73,0.00029753,2]
[328724842,1717734641342,-207.84204185,0.00029762,2]
[328724843,1717734641352,-3535.05205841,0.00029763,2]
[328724844,1717734641365,-512.79126072,0.00029763,2]
[328724845,1717734641375,-527.9571,0.00029763,2]
[328724846,1717734641385,-23936.58909808,0.00029763,2]
[328724847,1717734641734,-2799.3000199,0.00029763,2]
[328724848,1717734641746,-10831.79500732,0.00029763,2]
[328724849,1717734641763,-62432.3158747,0.00029763,2]
[328724850,1717734641774,-1000.0,0.00029763,2]
[328724851,1717734641784,-1218.78871228,0.00029763,7]
[328724852,1717734641794,-1218.78871228,0.00029763,7]
[328724853,1717734641804,-1218.78871228,0.00029763,7]
[328724854,1717734641814,-1218.78871228,0.00029763,7]
[328724855,1717734641824,-1218.78871228,0.00029763,7]
[328724856,1717734641834,-1218.78871228,0.00029763,7]
[328724857,1717734641844,-1218.78871228,0.00029763,7]
[328724858,1717734641854,-1218.78871228,0.00029763,7]
[328724859,1717734641864,-1218.78871228,0.00029763,7]
[328724860,1717734641874,-1218.78871228,0.00029763,7]
[328724861,1717734641884,-1218.78871228,0.00029763,7]
[328724862,1717734641894,-1218.78871228,0.00029763,7]
[328724863,1717734641905,-1218.78871228,0.00029763,7]
[328724864,1717734641915,-1218.78871228,0.00029763,7]
[328724865,1717734641925,-1218.78871228,0.00029763,7]
[328724866,1717734641935,-1218.78871228,0.00029763,7]
[328724867,1717734641944,-1218.78871228,0.00029763,7]
[328724868,1717734641954,-1218.78871228,0.00029763,7]
[328724869,1717734641964,-1218.78871228,0.00029763,7]
[328724870,1717734641973,-1219.28,0.00029763,7]
[328724871,1717734641983,-4875.22984912,0.00029763,7]
[328724872,1717734641992,-4875.22984912,0.00029763,7]
[328724873,1717734642002,-4875.22984912,0.00029763,7]
[328724874,1717734642011,-4875.22984912,0.00029763,7]
[328724875,1717734642020,-4875.22984912,0.00029763,7]
[328724876,1717734642030,-4875.22984912,0.00029763,7]
[328724877,1717734642039,-4875.22984912,0.00029763,7]
[328724878,1717734642049,-4875.22984912,0.00029763,7]
[328724879,1717734642059,-4875.22984912,0.00029763,7]
[328724880,1717734642069,-4875.22984912,0.00029763,7]
[328724881,1717734642078,-4875.22984912,0.00029763,7]
[328724882,1717734642088,-4875.22984912,0.00029763,7]
[328724883,1717734642099,-4875.22984912,0.00029763,7]
[328724884,1717734642109,-4875.22984912,0.00029763,7]
[328724885,1717734642118,-4875.22984912,0.00029763,7]
[328724886,1717734642128,-4875.22984912,0.00029763,7]
[328724887,1717734642139,-4875.22984912,0.00029763,7]
[328724888,1717734642150,-4875.22984912,0.00029763,7]
[328724889,1717734642160,-4875.22984912,0.00029763,7]
[328724890,1717734642169,-462.03080575,0.00029763,7]
[328724891,1717734642179,-462.03080575,0.00029763,7]
[328724892,1717734642188,-462.03080575,0.00029763,7]
[328724893,1717734642197,-462.03080575,0.00029763,7]
[328724894,1717734642207,-462.03080575,0.00029763,7]
[328724895,1717734642217,-462.03080575,0.00029763,7]
[328724896,1717734642226,-462.03080575,0.00029763,7]
[328724897,1717734642235,-462.03080575,0.00029763,7]
[328724898,1717734642246,-462.03080575,0.00029763,7]
[328724899,1717734642255,-462.03080575,0.00029763,7]
[328724900,1717734642265,-462.03080575,0.00029763,7]
[328724901,1717734642275,-462.03080575,0.00029763,7]
[328724902,1717734642289,-462.03080575,0.00029763,7]
[328724903,1717734642299,-462.03080575,0.00029763,7]
[328724904,1717734642308,-462.03080575,0.00029763,7]
[328724905,1717734642318,-462.03080575,0.00029763,7]
[328724906,1717734642328,-462.03080575,0.00029763,7]
[328724907,1717734642338,-462.03080575,0.00029763,7]
[328724908,1717734642347,-462.03080575,0.00029763,7]
[328724910,1717734642359,-462.53,0.00029763,7]
[328724912,1717734642370,-1848.198223,0.00029763,7]
[328724914,1717734642380,-1848.198223,0.00029763,7]
[328724915,1717734642390,-1848.198223,0.00029763,7]
[328724916,1717734642401,-1848.198223,0.00029763,7]
[328724917,1717734642410,-1848.198223,0.00029763,7]
[328724918,1717734642420,-1848.198223,0.00029763,7]
[328724919,1717734642429,-1848.198223,0.00029763,7]
[328724920,1717734642438,-1848.198223,0.00029763,7]
[328724921,1717734642449,-1848.198223,0.00029763,7]
[328724922,1717734642459,-1848.198223,0.00029763,7]
[328724923,1717734642469,-1848.198223,0.00029763,7]
[328724924,1717734642478,-1848.198223,0.00029763,7]
[328724925,1717734642487,-1633.82946817,0.00029763,7]
[328724932,1717734643020,-214.36875483,0.00029763,7]
[328724933,1717734643030,-857.73948461,0.00029763,7]
[328724934,1717734643042,-990.45873839,0.00029763,7]
[328724935,1717734643052,-293.2370032,0.00029763,7]
[328724936,1717734643068,-748.45787279,0.00029763,7]
[328724937,1717734643089,-806.50334701,0.00029763,7]
[328724938,1717734643099,-1848.198223,0.00029763,7]
[328724939,1717734643109,-1848.198223,0.00029763,7]
[328724940,1717734643119,-1848.198223,0.00029763,7]
[328724941,1717734643129,-494.00198399,0.00029763,7]
[328724942,1717734643255,-1354.19623901,0.00029763,7]
[328724943,1717734643264,-238.07368294,0.00029763,7]
[328724944,1717734643274,-238.07368294,0.00029763,7]
[328724945,1717734643286,-238.07368294,0.00029763,7]
[328724946,1717734643296,-238.07368294,0.00029763,7]
[328724947,1717734643305,-238.07368294,0.00029763,7]
[328724948,1717734643315,-238.07368294,0.00029763,7]
[328724949,1717734643324,-238.07368294,0.00029763,7]
[328724950,1717734643334,-238.07368294,0.00029763,7]
[328724951,1717734643344,-238.07368294,0.00029763,7]
[328724952,1717734643353,-238.07368294,0.00029763,7]
[328724953,1717734643364,-238.07368294,0.00029763,7]
[328724954,1717734643374,-238.07368294,0.00029763,7]
[328724955,1717734643384,-238.07368294,0.00029763,7]
[328724956,1717734643393,-238.07368294,0.00029763,7]
[328724957,1717734643403,-238.07368294,0.00029763,7]
[328724958,1717734643412,-238.07368294,0.00029763,7]
[328724959,1717734643421,-238.07368294,0.00029763,7]
[328724960,1717734643431,-238.07368294,0.00029763,7]
[328724961,1717734643440,-238.07368294,0.00029763,7]
[328724962,1717734643450,-238.57,0.00029763,7]
[328724963,1717734643460,-952.36973177,0.00029763,7]
[328724964,1717734643470,-952.36973177,0.00029763,7]
[328724965,1717734643479,-952.36973177,0.00029763,7]
[328724966,1717734643489,-952.36973177,0.00029763,7]
[328724967,1717734643498,-952.36973177,0.00029763,7]
[328724968,1717734643508,-952.36973177,0.00029763,7]
[328724969,1717734643517,-952.36973177,0.00029763,7]
[328724970,1717734643527,-952.36973177,0.00029763,7]
[328724971,1717734643537,-952.36973177,0.00029763,7]
[328724972,1717734643547,-952.36973177,0.00029763,7]
[328724973,1717734643556,-952.36973177,0.00029763,7]
[328724974,1717734643566,-952.36973177,0.00029763,7]
[328724975,1717734643575,-952.36973177,0.00029763,7]
[328724976,1717734643585,-952.36973177,0.00029763,7]
[328724977,1717734643594,-952.36973177,0.00029763,7]
[328724978,1717734643604,-952.36973177,0.00029763,7]
[328724979,1717734643613,-952.36973177,0.00029763,7]
[328724980,1717734643622,-952.36973177,0.00029763,7]
[328724981,1717734643631,-952.36973177,0.00029763,7]
[328724982,1717734643640,-473.40661459,0.00029763,7]
[328724984,1717734643650,-473.40661459,0.00029763,7]
[328724986,1717734643660,-473.40661459,0.00029763,7]
[328724988,1717734643670,-473.40661459,0.00029763,7]
[328724990,1717734643680,-473.40661459,0.00029763,7]
[328724991,1717734643689,-473.40661459,0.00029763,7]
[328724992,1717734643698,-473.40661459,0.00029763,7]
[328724993,1717734643708,-473.40661459,0.00029763,7]
[328724994,1717734643717,-473.40661459,0.00029763,7]
[328724995,1717734643726,-473.40661459,0.00029763,7]
[328724996,1717734643736,-473.40661459,0.00029763,7]
[328724997,1717734643745,-473.40661459,0.00029763,7]
[328724998,1717734643754,-473.40661459,0.00029763,7]
[328724999,1717734643764,-473.40661459,0.00029763,7]
[328725000,1717734643773,-473.40661459,0.00029763,7]
[328725001,1717734643782,-473.40661459,0.00029763,7]
[328725002,1717734643792,-473.40661459,0.00029763,7]
[328725003,1717734643801,-473.40661459,0.00029763,7]
[328725004,1717734643811,-473.40661459,0.00029763,7]
[328725005,1717734643820,-473.9,0.00029763,7]
[328725006,1717734643830,-1893.70145835,0.00029763,7]
[328725007,1717734643840,-1893.70145835,0.00029763,7]
[328725008,1717734643849,-1893.70145835,0.00029763,7]
[328725009,1717734643859,-1893.70145835,0.00029763,7]
[328725010,1717734643869,-1893.70145835,0.00029763,7]
[328725011,1717734643878,-1893.70145835,0.00029763,7]
[328725012,1717734643888,-1893.70145835,0.00029763,7]
[328725013,1717734643898,-1893.70145835,0.00029763,7]
[328725014,1717734643908,-1893.70145835,0.00029763,7]
[328725015,1717734643917,-1893.70145835,0.00029763,7]
[328725016,1717734643926,-1893.70145835,0.00029763,7]
[328725017,1717734643936,-1893.70145835,0.00029763,7]
[328725018,1717734643946,-1893.70145835,0.00029763,7]
[328725019,1717734643956,-1893.70145835,0.00029763,7]
[328725020,1717734643965,-1893.70145835,0.00029763,7]
[328725021,1717734643975,-1893.70145835,0.00029763,7]
[328725022,1717734643984,-1893.70145835,0.00029763,7]
[328725023,1717734643996,-1893.70145835,0.00029763,7]
[328725024,1717734644006,-1893.70145835,0.00029763,7]
[328725025,1717734644016,-533.82453894,0.00029764,2]
[328725026,1717734644025,-3535.05205837,0.00029775,2]
[328725027,1717734644035,-154.19092341,0.00029778,2]
[328725028,1717734644044,-151.0,0.00029782,2]
[328725029,1717734644054,-430.02428589,0.00029783,2]
[328725030,1717734644064,-3535.05205837,0.00029788,2]
[328725031,1717734644074,-742.23504748,0.00029799,15]
[328725032,1717734644084,-127474.0,0.000298,2]
[328725033,1717734644095,-120297.0,0.000298,2]
[328725034,1717734644104,-511.0,0.000298,14]
[328725035,1717734644116,-345.0,0.000298,2]
[328725036,1717734644125,-160.0,0.000298,2]
[328725037,1717734644135,-1005.4,0.000298,2]
[328725038,1717734644145,-301.66,0.000298,2]
[328725039,1717734644156,-150.0,0.000298,6]
[328725040,1717734644166,-150.0,0.000298,6]
[328725041,1717734644176,-151.0,0.000298,7]
[328725042,1717734644185,-151.0,0.000298,7]
[328725043,1717734644194,-283.259211,0.000298,7]
[328725044,1717734644204,-283.259211,0.000298,7]
[328725045,1717734644213,-973.782354,0.000298,7]
[328725046,1717734644224,-3535.05205837,0.000298,2]
[328725047,1717734644234,-416.66,0.00029802,2]
[328725048,1717734644244,-242.37781429,0.00029808,2]
[328725049,1717734644253,-3535.05205837,0.00029813,2]
[328725050,1717734644264,-418.10043704,0.00029823,2]
[328725051,1717734644274,-3535.05205837,0.00029825,2]
[328725052,1717734644287,-155.05,0.00029833,15]
[328725053,1717734644296,-279.0,0.00029833,15]
[328725054,1717734644307,-3535.05205837,0.00029838,2]
[328725055,1717734644319,-150.5,0.00029843,15]
[328725056,1717734644329,-279.0,0.00029843,15]
[328725057,1717734644339,-153.73,0.00029845,2]
[328725058,1717734644348,-3535.05205837,0.0002985,2]
[328725059,1717734644358,-212.37299629,0.00029851,2]
[328725060,1717734644368,-150.5,0.00029853,15]
[328725061,1717734644378,-279.0,0.00029853,15]
[328725062,1717734644387,-1093.9877724,0.00029855,2]
[328725063,1717734644396,-21120.6314995,0.00029855,2]
[328725064,1717734644408,-700.48932475,0.00029855,2]
[328725065,1717734644418,-408.624732,0.00029855,2]
[328725066,1717734644428,-157.0,0.0002986,7]
[328725067,1717734644438,-7634.13463773,0.00029861,2]
[328725068,1717734644447,-793.62566451,0.00029861,2]
[328725069,1717734644457,-162.54913182,0.00029861,2]
[328725070,1717734644467,-1052.6686363,0.00029861,2]
[328725071,1717734644477,-248.00187572,0.00029861,2]
[328725072,1717734644486,-155.8386645,0.00029861,2]
[328725073,1717734644496,-789.37013607,0.00029861,2]
[328725074,1717734644506,-1986.01874225,0.00029861,2]
[328725075,1717734644515,-578.3081523,0.00029861,7]
[328725076,1717734644524,-155.28279113,0.00029861,2]
[328725077,1717734644534,-620.02261849,0.00029861,2]
[328725078,1717734644543,-4453.43741383,0.00029861,2]
[328725079,1717734644553,-6786.64428082,0.00029861,2]